lending/lending_fUSD_20260411
["ID","MTS","AMOUNT","RATE_DAILY","PERIOD"]
[420287453,1775911133210,-859.76,0.00043,120]
[420287454,1775911133263,-8920.4,0.00043,120]
[420287455,1775911133439,-977.29,0.00043,120]
[420287456,1775911133497,-2500.0,0.00043,120]
[420287457,1775911133543,-820.6,0.00043,120]
[420287458,1775911133597,-12500.0,0.00043,120]
[420287459,1775911133659,-1309.11,0.00043,120]
[420287460,1775911133706,-273.47,0.00043,120]
[420287461,1775911133753,-12500.0,0.00043,120]
[420287462,1775911133810,-344.0,0.00043,120]
[420287463,1775911133869,-351.43,0.00043,120]
[420287464,1775911133914,-316.08,0.00043,120]
[420287465,1775911133962,-329.89,0.00043,120]
[420287466,1775911134022,-32360.92,0.00043,30]
[420287467,1775911134100,-8990.45,0.00043,30]
[420287468,1775911134193,-24091.27,0.00043,30]
[420287469,1775911134258,-12500.0,0.00043,120]
[420287470,1775911134304,-4910.17,0.00043,120]
[420287471,1775911134349,-12499.99,0.00043,120]
[420287472,1775911134393,-150.0,0.00043013,30]
[420287473,1775911134440,-150.0,0.00043017,30]
[420287474,1775911134487,-189.71,0.00043022,60]
[420287475,1775911134533,-251.5373618,0.00043034,30]
[420287476,1775911134580,-194.25895487,0.00043034,30]
[420287477,1775911134640,-245.2524984,0.00043034,30]
[420287478,1775911134700,-320.27544227,0.00043034,30]
[420287479,1775911134760,-244.52531101,0.00043034,30]
[420287480,1775911134806,-203.76821502,0.00043034,30]
[420287481,1775911134865,-150.0,0.00043036,30]
[420287482,1775911134946,-203.85838449,0.00043038,120]
[420287483,1775911134989,-150.0,0.00043043,30]
[420287484,1775911135034,-150.0,0.00043069,30]
[420287485,1775911135079,-251.5373618,0.00043081,30]
[420287486,1775911135124,-194.25895487,0.00043081,30]
[420287487,1775911135174,-245.2524984,0.00043081,30]
[420287488,1775911135219,-320.27544227,0.00043081,30]
[420287489,1775911135266,-244.52531101,0.00043081,30]
[420287490,1775911135333,-203.76821502,0.00043081,30]
[420287491,1775911135387,-150.0,0.00043086,30]
[420287492,1775911135432,-7010.92386823,0.000431,120]
[420287493,1775911135499,-150.0,0.00043102,30]
[420287494,1775911135544,-251.5373618,0.00043128,30]
[420287495,1775911135587,-194.25895487,0.00043128,30]
[420287496,1775911135638,-245.2524984,0.00043128,30]
[420287497,1775911135699,-320.27544227,0.00043128,30]
[420287498,1775911135754,-244.52531101,0.00043128,30]
[420287499,1775911135803,-203.76821502,0.00043128,30]
[420287500,1775911135878,-1000.0,0.00043138,120]
[420287501,1775911135925,-150.0,0.00043147,30]
[420287502,1775911135972,-170.0,0.00043151,90]
[420287503,1775911136038,-150.0,0.00043156,30]
[420287504,1775911136120,-371.1,0.00043166,120]
[420287505,1775911136172,-150.0,0.00043169,30]
[420287506,1775911136217,-299.49,0.00043169,120]
[420287507,1775911136263,-251.5373618,0.00043175,30]
[420287508,1775911136311,-194.25895487,0.00043175,30]
[420287509,1775911136355,-245.2524984,0.00043175,30]
[420287510,1775911136408,-320.27544227,0.00043175,30]
[420287511,1775911136450,-244.52531101,0.00043175,30]
[420287512,1775911136491,-203.76821502,0.00043175,30]
[420287513,1775911136532,-251.5373618,0.00043222,30]
[420287514,1775911136580,-194.25895487,0.00043222,30]
[420287515,1775911136624,-245.2524984,0.00043222,30]
[420287516,1775911136667,-320.27544227,0.00043222,30]
[420287517,1775911136718,-244.52531101,0.00043222,30]
[420287518,1775911136772,-203.76821502,0.00043222,30]
[420287519,1775911136817,-150.0,0.00043225,30]
[420287520,1775911136884,-150.0,0.00043235,30]
[420287521,1775911136932,-150.0,0.00043235,30]
[420287522,1775911136974,-150.0,0.00043235,30]
[420287523,1775911137015,-150.0,0.0004325,30]
[420287524,1775911137060,-15000.0,0.0004325,120]
[420287525,1775911137104,-371.1,0.00043266,120]
[420287526,1775911137171,-251.5373618,0.00043269,30]
[420287527,1775911137218,-194.25895487,0.00043269,30]
[420287528,1775911137276,-245.2524984,0.00043269,30]
[420287529,1775911137331,-320.27544227,0.00043269,30]
[420287530,1775911137378,-244.52531101,0.00043269,30]
[420287531,1775911137426,-203.76821502,0.00043269,30]
[420287532,1775911137475,-10123.09090909,0.00043288,30]
[420287533,1775911137516,-500.0,0.00043288,100]
[420287534,1775911137560,-150.0,0.00043295,30]
[420287535,1775911137610,-5000000.0,0.000433,120]
[420287536,1775911137662,-2435663.4449932,0.000433,120]
[420287537,1775911178514,-600.0,0.00031,92]
[420287538,1775911178570,-1630.06,0.000333,30]
[420287539,1775911178615,-1784.78,0.000333,30]
[420287540,1775911178658,-1630.06,0.000342,30]
[420287541,1775911178702,-1784.78,0.000342,30]
[420287542,1775911178773,-350.97716763,0.00035616,120]
[420287543,1775911178876,-151.0,0.00038342,120]
[420287544,1775911178927,-151.0,0.00038342,120]
[420287545,1775911179012,-151.0,0.00038342,120]
[420287546,1775911179066,-209.168109,0.00038342,120]
[420287547,1775911179148,-151.0,0.00038342,120]
[420287548,1775911179201,-209.168109,0.00038342,120]
[420287549,1775911179270,-209.168109,0.00038342,120]
[420287550,1775911179331,-209.168109,0.00038342,120]
[420287551,1775911179401,-350.190847,0.00038342,120]
[420287552,1775911179462,-350.190847,0.00038342,120]
[420287553,1775911179539,-350.190847,0.00038342,120]
[420287554,1775911179616,-151.0,0.00038342,120]
[420287555,1775911179672,-741.931273,0.00038342,120]
[420287556,1775911179732,-350.190847,0.00038342,120]
[420287557,1775911179786,-151.0,0.00038342,120]
[420287558,1775911179842,-151.0,0.00038342,120]
[420287559,1775911179893,-741.931273,0.00038342,120]
[420287560,1775911179940,-151.0,0.00038342,120]
[420287561,1775911180001,-151.0,0.00038342,120]
[420287562,1775911180048,-741.931273,0.00038342,120]
[420287563,1775911180095,-741.931273,0.00038342,120]
[420287564,1775911180156,-213.402551,0.00038342,120]
[420287565,1775911180201,-151.0,0.00038342,120]
[420287566,1775911180249,-151.0,0.00038342,120]
[420287567,1775911180300,-275.129673,0.00038342,120]
[420287568,1775911180361,-151.0,0.00038342,120]
[420287569,1775911180418,-275.129673,0.00038342,120]
[420287570,1775911180464,-151.0,0.00038342,120]
[420287571,1775911180514,-278.473176,0.00038342,120]
[420287572,1775911180567,-275.129673,0.00038342,120]
[420287573,1775911180613,-275.129673,0.00038342,120]
[420287574,1775911180661,-271.835558,0.00038342,120]
[420287575,1775911180708,-271.835558,0.00038342,120]
[420287576,1775911180771,-1784.78,0.0004,30]
[420287577,1775911180827,-230.202,0.0004,30]
[420287578,1775911180877,-184.110574,0.000407,120]
[420287579,1775911180935,-1012.58656,0.000407,120]
[420287580,1775911180982,-151.0,0.000407,120]
[420287581,1775911181026,-1012.58656,0.000407,120]
[420287582,1775911181069,-184.110574,0.000407,120]
[420287583,1775911181113,-12500.0,0.00041,30]
[420287584,1775911181157,-1630.06,0.00041,30]
[420287585,1775911181399,-500.0,0.00041,45]
[420287586,1775911181469,-151.0,0.0004125,120]
[420287587,1775911181523,-151.0,0.0004125,120]
[420287588,1775911181576,-151.0,0.0004125,120]
[420287589,1775911181648,-209.168109,0.0004125,120]
[420287590,1775911181704,-151.0,0.0004125,120]
[420287591,1775911181837,-209.168109,0.0004125,120]
[420287592,1775911182032,-209.168109,0.0004125,120]
[420287593,1775911182135,-209.168109,0.0004125,120]
[420287594,1775911182189,-350.190847,0.0004125,120]
[420287595,1775911182271,-350.190847,0.0004125,120]
[420287596,1775911182340,-350.190847,0.0004125,120]
[420287597,1775911182394,-741.931273,0.0004125,120]
[420287598,1775911182445,-151.0,0.0004125,120]
[420287599,1775911182499,-350.190847,0.0004125,120]
[420287600,1775911182551,-151.0,0.0004125,120]
[420287601,1775911182603,-151.0,0.0004125,120]
[420287602,1775911182654,-741.931273,0.0004125,120]
[420287603,1775911182707,-274.990232,0.0004125,120]
[420287604,1775911182758,-151.0,0.0004125,120]
[420287605,1775911182806,-741.931273,0.0004125,120]
[420287606,1775911182850,-741.931273,0.0004125,120]
[420287607,1775911182894,-151.0,0.0004125,120]
[420287608,1775911182940,-151.0,0.0004125,120]
[420287609,1775911182987,-275.129673,0.0004125,120]
[420287610,1775911183040,-151.0,0.0004125,120]
[420287611,1775911183092,-275.129673,0.0004125,120]
[420287612,1775911183134,-151.0,0.0004125,120]
[420287613,1775911183177,-275.129673,0.0004125,120]
[420287614,1775911183223,-275.129673,0.0004125,120]
[420287615,1775911183275,-271.835558,0.0004125,120]
[420287616,1775911183325,-271.835558,0.0004125,120]
[420287617,1775911183456,-1800.0,0.0004137,30]
[420287618,1775911183510,-1800.0,0.0004137,30]
[420287619,1775911183560,-1800.0,0.0004137,30]
[420287620,1775911183621,-1800.0,0.0004137,30]
[420287621,1775911183669,-1800.0,0.0004137,30]
[420287622,1775911183716,-1800.0,0.0004137,30]
[420287623,1775911183767,-1800.0,0.0004137,30]
[420287624,1775911183818,-1800.0,0.0004137,30]
[420287625,1775911183867,-1800.0,0.0004137,30]
[420287626,1775911183931,-1800.0,0.0004137,30]
[420287627,1775911183983,-1800.0,0.0004137,30]
[420287628,1775911184057,-1800.0,0.0004137,30]
[420287629,1775911184159,-1800.0,0.0004137,30]
[420287630,1775911184224,-1800.0,0.0004137,30]
[420287631,1775911184282,-1800.0,0.0004137,30]
[420287632,1775911184346,-1902.0,0.0004137,30]
[420287633,1775911184400,-500.0,0.000415,45]
[420287634,1775911184452,-151.0,0.00042,120]
[420287635,1775911184523,-151.0,0.00042,120]
[420287636,1775911184612,-151.0,0.00042,120]
[420287637,1775911184709,-209.168109,0.00042,120]
[420287638,1775911184782,-151.0,0.00042,120]
[420287639,1775911184830,-209.168109,0.00042,120]
[420287640,1775911184877,-209.168109,0.00042,120]
[420287641,1775911184921,-209.168113,0.00042,120]
[420287642,1775911184964,-350.190847,0.00042,120]
[420287643,1775911185007,-350.190847,0.00042,120]
[420287644,1775911185053,-350.190847,0.00042,120]
[420287645,1775911185100,-151.0,0.00042,120]
[420287646,1775911185150,-350.190849,0.00042,120]
[420287647,1775911185208,-151.0,0.00042,120]
[420287648,1775911185257,-741.931273,0.00042,120]
[420287649,1775911185337,-151.0,0.00042,120]
[420287650,1775911185455,-741.931273,0.00042,120]
[420287651,1775911185550,-741.931273,0.00042,120]
[420287652,1775911185639,-151.0,0.00042,120]
[420287653,1775911185689,-741.931265,0.00042,120]
[420287654,1775911185736,-151.0,0.00042,120]
[420287655,1775911185780,-151.0,0.00042,120]
[420287656,1775911185823,-500.0,0.00042,45]
[420287657,1775911185864,-275.129673,0.00042,120]
[420287658,1775911185907,-151.0,0.00042,120]
[420287659,1775911185955,-275.129673,0.00042,120]
[420287660,1775911186414,-151.0,0.00042,120]
[420287661,1775911186492,-275.129673,0.00042,120]
[420287662,1775911186550,-275.129677,0.00042,120]
[420287663,1775911186602,-271.835558,0.00042,120]
[420287664,1775911186670,-184.110574,0.00042,120]
[420287665,1775911186722,-1012.58656,0.00042,120]
[420287666,1775911186772,-271.835558,0.00042,120]
[420287667,1775911186817,-151.0,0.00042,120]
[420287668,1775911186870,-184.110574,0.00042,120]
[420287669,1775911186952,-1012.58656,0.00042,120]
[420287670,1775911187004,-250.0,0.00042466,120]
[420287671,1775911187047,-250.0,0.00042493,30]
[420287672,1775911187091,-3000.0,0.00042499,120]
[420287673,1775911187135,-2497.81175274,0.00042499,120]
[420287674,1775911187179,-500.0,0.000425,45]
[420287675,1775911187232,-652.47508378,0.00042836,30]
[420287676,1775911187291,-8990.45,0.00043,120]
[420287677,1775911187351,-2564336.5550068,0.000433,120]
[420287678,1775911187404,-5000000.0,0.000433,120]
[420287679,1775911187451,-2000.0,0.000433,120]
[420287680,1775911187499,-200000.0,0.000433,55]
[420287681,1775911187543,-153.0,0.000433,120]
[420287682,1775911187587,-47961.4619446,0.000433,30]
[420287683,1775911187631,-184.110574,0.000433,120]
[420287684,1775911187678,-1012.58656,0.000433,120]
[420287685,1775911187721,-151.0,0.000433,120]
[420287686,1775911187764,-1012.58656,0.000433,120]
[420287687,1775911187808,-184.110574,0.000433,120]
[420287688,1775911187849,-1472.0,0.000433,60]
[420287689,1775911187888,-150.0,0.00043302,30]
[420287690,1775911187928,-900.0,0.00043309,120]
[420287691,1775911187969,-500.0,0.00043309,120]
[420287692,1775911188011,-442.5936,0.0004331,120]
[420287693,1775911188053,-500.0,0.00043314,120]
[420287694,1775911188096,-251.5373618,0.00043316,30]
[420287695,1775911188142,-245.2524984,0.00043316,30]
[420287696,1775911188185,-320.27544227,0.00043316,30]
[420287697,1775911188227,-244.52531101,0.00043316,30]
[420287698,1775911188270,-203.76821502,0.00043316,30]
[420287699,1775911188314,-2900.0,0.0004333,90]
[420287700,1775911188358,-12500.0,0.00043338,120]
[420287701,1775911188413,-12500.0,0.00043338,120]
[420287702,1775911188461,-12500.0,0.00043338,120]
[420287703,1775911188506,-12500.0,0.00043338,120]
[420287704,1775911188552,-12500.0,0.00043338,120]
[420287705,1775911188606,-15000.0,0.0004335,120]
[420287706,1775911188662,-150.0,0.00043353,30]
[420287707,1775911188722,-150.0,0.0004336,30]
[420287708,1775911188785,-251.5373618,0.00043363,30]
[420287709,1775911188856,-194.25895487,0.00043363,30]
[420287710,1775911188944,-245.2524984,0.00043363,30]
[420287711,1775911189022,-320.27544227,0.00043363,30]
[420287712,1775911189083,-244.52531101,0.00043363,30]
[420287713,1775911189136,-203.76821502,0.00043363,30]
[420287714,1775911189197,-150.0,0.00043364,30]
[420287715,1775911189259,-371.1,0.00043366,120]
[420287716,1775911189318,-150.0,0.00043368,30]
[420287717,1775911189370,-155.360145,0.00043398,120]
[420287718,1775911189415,-879.82,0.00043403,30]
[420287719,1775911189462,-251.5373618,0.0004341,30]
[420287720,1775911189509,-194.25895487,0.0004341,30]
[420287721,1775911189558,-245.2524984,0.0004341,30]
[420287722,1775911189605,-320.27544227,0.0004341,30]
[420287723,1775911189654,-244.52531101,0.0004341,30]
[420287724,1775911189717,-203.76821502,0.0004341,30]
[420287725,1775911189770,-492.83375056,0.00043418,60]
[420287726,1775911190042,-150.0,0.00043434,30]
[420287727,1775911190110,-150.0,0.00043435,30]
[420287728,1775911190174,-989197.14421665,0.00043446,30]
[420287730,1775911204045,1542.0,0.0002737,120]
[420287731,1775911204263,1542.0,0.0002737,120]
[420287732,1775911238218,-3010.5324853,8.741e-05,2]
[420287733,1775911238262,-1200.0,8.75e-05,2]
[420287734,1775911238326,-5789.4675147,8.751e-05,2]
[420287735,1775911239566,-1567.9940853,8.751e-05,2]
[420287736,1775911239603,-250.0,8.848e-05,2]
[420287737,1775911251523,-250.0,8.928e-05,2]
[420287738,1775911251554,-150.0,8.947e-05,2]
[420287739,1775911251594,-7782.0059147,8.948e-05,2]
[420287741,1775911261274,1185.911465,0.00024402,120]
[420287742,1775911273293,500.0,0.00030136,120]
[420287743,1775911273701,500.0,0.00030136,120]
[420287744,1775911275101,-4261.5072,8.948e-05,2]
[420287745,1775911275144,-250.0,8.998e-05,2]
[420287746,1775911284809,-5488.4928,9.048e-05,2]
[420287747,1775911302904,1045.00650979,0.00026137,120]
[420287761,1775911325113,-2589.478,8.867e-05,2]
[420287762,1775911325149,-167.741,8.867e-05,2]
[420287763,1775911327358,250.0,8.957e-05,2]
[420287764,1775911333121,-500.0,9.047e-05,2]
[420287765,1775911333143,-409.781,9.047e-05,2]
[420287767,1775911356580,-90.219,9.047e-05,2]
[420287768,1775911356602,-500.0,9.047e-05,2]
[420287769,1775911356630,-185.15789205,9.047e-05,2]
[420287770,1775911356658,-500.0,9.047e-05,2]
[420287771,1775911356685,-568.90490928,9.047e-05,2]
[420287772,1775911356711,-190.38559759,9.047e-05,2]
[420287773,1775911356732,-500.0,9.047e-05,2]
[420287774,1775911356756,-363.8935648,9.047e-05,2]
[420287775,1775911356778,-300.0,9.047e-05,2]
[420287776,1775911356802,-150.0,9.047e-05,2]
[420287777,1775911356830,-6651.43903628,9.048e-05,2]
[420287778,1775911358823,-10000.0,9.048e-05,2]
[420287779,1775911363120,-489.0,9.048e-05,2]
[420287781,1775911370933,632.833475,0.00024402,120]
[420287782,1775911415189,883.0,0.0003013,120]
[420287784,1775911490763,394.622734,0.00024402,120]
[420287786,1775911537010,197.311367,0.00024237,120]
[420287793,1775911588838,285.115546,0.00022845,120]
[420287794,1775911597795,500.0,0.00030136,120]
[420287795,1775911608722,1000.0,0.00027397,120]
[420287796,1775911609649,1000.0,0.00030137,120]
[420287797,1775911629809,285.0,0.00025837,120]
[420287798,1775911632349,184.0,0.00025837,120]
[420287799,1775911667304,2938.0,0.00029987,120]
[420287800,1775911670211,500.0,0.0003013,120]
[420287801,1775911674049,4503.67612596,0.0003,120]
[420287807,1775911746977,267.0,0.00025765,120]
[420287808,1775911771144,-3930.9899,8.848e-05,2]
[420287809,1775911771189,-250.0,8.897e-05,2]
[420287810,1775911771233,-300.0,8.946e-05,2]
[420287811,1775911771272,-1200.0,8.947e-05,2]
[420287812,1775911771350,-150.0,8.947e-05,2]
[420287813,1775911771386,-1032.0,8.947e-05,2]
[420287814,1775911771422,-250.0,8.947e-05,2]
[420287815,1775911771471,-2913.2025,8.948e-05,2]
[420287816,1775911771529,-49727.7366,8.948e-05,2]
[420287817,1775911771572,-151.65944281,9.047e-05,2]
[420287818,1775911796381,1601.5,0.0002737,120]
[420287819,1775911796938,1601.5,0.0002737,120]
[420287820,1775911807578,302.267331,0.000233,120]
[420287821,1775911831438,-419.0,9.5e-05,2]
[420287822,1775911831450,-250.0,9.616e-05,2]
[420287823,1775911831461,-250.0,9.733e-05,2]
[420287824,1775911831471,-150.0,9.8e-05,2]
[420287825,1775911831485,-300.0,9.841e-05,2]
[420287826,1775911831496,-1200.0,9.841e-05,2]
[420287827,1775911831508,-299.99,9.842e-05,2]
[420287828,1775911831518,-9999.99,9.842e-05,2]
[420287829,1775911831537,-770.25,9.842e-05,2]
[420287830,1775911831549,-150.99,9.842e-05,2]
[420287831,1775911831560,-3578.12844466,9.842e-05,2]
[420287832,1775911831598,-805.848,9.842e-05,2]
[420287833,1775911831711,-819.1793169,9.842e-05,2]
[420287834,1775911831759,-1349.24808633,9.842e-05,2]
[420287835,1775911831787,-627.45303178,9.842e-05,2]
[420287839,1775911831855,-2820.13312033,9.842e-05,2]
[420287840,1775911831872,-255.0,9.842e-05,2]
[420287841,1775911831885,-150.99,9.952e-05,2]
[420287842,1775911831895,-152.42260188,0.0001,2]
[420287843,1775911831905,-250.3625571,0.00010432,2]
[420287844,1775911831924,-250.0,0.0001045,2]
[420287845,1775911831934,-2761.22,0.00010502,2]
[420287846,1775911831945,-420.0,0.00010825,2]
[420287847,1775911831955,-1680.0,0.00010825,2]
[420287848,1775911831973,-433.0,0.00010826,2]
[420287849,1775911831983,-500.0,0.000109,3]
[420287850,1775911831996,-4233.60982344,0.000109,2]
[420287851,1775911832012,-500.0,0.00011031,2]
[420287852,1775911832023,-171.9261,0.000112,2]
[420287853,1775911832032,-335.8,0.00011507,2]
[420287854,1775911832070,-152.0,0.00011611,7]
[420287855,1775911832079,-152.0,0.00011613,7]
[420287856,1775911832104,-152.0,0.00011613,7]
[420287857,1775911832114,-152.0,0.00011614,7]
[420287858,1775911832129,-152.0,0.00011614,7]
[420287859,1775911832148,-152.0,0.00011614,7]
[420287860,1775911832162,-152.0,0.00011616,7]
[420287861,1775911832176,-152.0,0.00011616,7]
[420287862,1775911832194,-152.0,0.00011616,7]
[420287863,1775911832209,-152.0,0.00011618,7]
[420287864,1775911832222,-152.0,0.00011618,7]
[420287865,1775911832248,-152.0,0.0001162,7]
[420287866,1775911832257,-152.0,0.0001162,7]
[420287867,1775911832267,-152.0,0.0001162,7]
[420287868,1775911832276,-152.0,0.0001162,7]
[420287869,1775911832300,-152.0,0.0001162,7]
[420287870,1775911832315,-152.0,0.00011636,7]
[420287871,1775911832328,-166.66,0.00011752,2]
[420287872,1775911832343,-264.0,0.00011908,2]
[420287873,1775911832357,-587.0,0.00011908,2]
[420287874,1775911832367,-897.0,0.00011908,2]
[420287875,1775911832382,-4233.60982337,0.00011971,2]
[420287876,1775911832401,-2000.0,0.00012102,2]
[420287877,1775911832411,-197.0574,0.000125,2]
[420287878,1775911832422,-500.0,0.00013318,2]
[420287879,1775911832434,-1047.0,0.00013318,2]
[420287880,1775911832451,-622.0,0.00013318,2]
[420287881,1775911832464,-3525.0,0.00013318,2]
[420287882,1775911832474,-1264.0,0.00013318,2]
[420287883,1775911832487,-150.0,0.00013318,2]
[420287884,1775911832496,-1218.0,0.00013318,2]
[420287885,1775911832510,-926.0,0.00013318,2]
[420287886,1775911832519,-200.0,0.00013318,2]
[420287887,1775911832532,-150.0,0.00013318,2]
[420287888,1775911832541,-151.0,0.00013318,2]
[420287889,1775911832556,-150.471,0.00013318,2]
[420287890,1775911832566,-3774.0,0.00013318,2]
[420287891,1775911832577,-150.17,0.00013318,2]
[420287892,1775911832593,-191.321,0.00013318,2]
[420287893,1775911832606,-6024.0,0.00013318,2]
[420287894,1775911832615,-3240.0,0.00013425,2]
[420287895,1775911832627,-2000.0,0.00013615,2]
[420287896,1775911832642,-500.0,0.00013698,2]
[420287897,1775911832665,-500.0,0.00013698,2]
[420287898,1775911832674,-501.17,0.00013698,2]
[420287899,1775911832694,-500.0,0.00013698,2]
[420287900,1775911832710,-500.0,0.00013698,2]
[420287901,1775911832721,-500.0,0.00013698,2]
[420287902,1775911832738,-503.38712912,0.00013698,2]
[420287903,1775911832750,-500.0,0.00013698,2]
[420287904,1775911832760,-500.0,0.00013698,2]
[420287905,1775911832769,-500.0,0.00013698,2]
[420287906,1775911832779,-500.0,0.00013698,2]
[420287907,1775911832791,-500.0,0.00013698,2]
[420287908,1775911832800,-500.0,0.00013698,2]
[420287909,1775911832812,-500.0,0.00013698,2]
[420287910,1775911832824,-500.0,0.00013698,2]
[420287911,1775911832833,-500.0,0.00013698,2]
[420287912,1775911832843,-500.0,0.00013698,2]
[420287913,1775911832855,-500.0,0.00013698,2]
[420287914,1775911832868,-500.0,0.00013698,2]
[420287915,1775911832877,-500.0,0.00013698,2]
[420287916,1775911832886,-500.0,0.00013698,2]
[420287917,1775911832897,-511.5,0.00013698,2]
[420287918,1775911832910,-699.93,0.00013699,2]
[420287919,1775911832919,-500.0,0.00013699,2]
[420287920,1775911832933,-152.21047268,0.00013699,2]
[420287921,1775911832942,-200.99276836,0.000138,2]
[420287922,1775911832955,-225.8622,0.000139,2]
[420287923,1775911832969,-699.93,0.00014384,2]
[420287924,1775911832980,-4233.60982337,0.00014543,2]
[420287925,1775911832991,-2761.22,0.00014702,2]
[420287926,1775911833001,-699.93,0.00015068,2]
[420287927,1775911833017,-2000.0,0.00015128,2]
[420287928,1775911833038,-258.8775,0.000153,2]
[420287929,1775911833050,-699.93,0.00015753,2]
[420287930,1775911833064,-335.8,0.00015945,2]
[420287931,1775911833088,-160.0,0.00015993,2]
[420287932,1775911833103,-9999.99,0.00016116,2]
[420287933,1775911833119,-3525.0,0.00016318,2]
[420287934,1775911833133,-150.0,0.00016318,2]
[420287935,1775911833145,-150.0,0.00016318,2]
[420287936,1775911833159,-150.0,0.00016318,2]
[420287937,1775911833193,-3774.0,0.00016318,2]
[420287938,1775911833211,-6024.0,0.00016318,2]
[420287939,1775911833268,-183.69,0.000164,2]
[420287940,1775911833286,-500.0,0.00016438,2]
[420287941,1775911833319,-500.0,0.00016438,2]
[420287942,1775911833351,-500.0,0.00016438,2]
[420287943,1775911833361,-500.0,0.00016438,2]
[420287944,1775911833371,-500.0,0.00016438,2]
[420287945,1775911833397,-500.0,0.00016438,2]
[420287946,1775911833427,-500.0,0.00016438,2]
[420287947,1775911833436,-500.0,0.00016438,2]
[420287948,1775911833446,-500.0,0.00016438,2]
[420287949,1775911833463,-500.0,0.00016438,2]
[420287950,1775911833478,-500.0,0.00016438,2]
[420287951,1775911833495,-500.0,0.00016438,2]
[420287952,1775911833507,-500.0,0.00016438,2]
[420287953,1775911833517,-500.0,0.00016438,2]
[420287954,1775911833543,-500.0,0.00016438,2]
[420287955,1775911833552,-500.0,0.00016438,2]
[420287956,1775911833562,-500.0,0.00016438,2]
[420287957,1775911833587,-500.0,0.00016438,2]
[420287958,1775911833596,-500.0,0.00016438,2]
[420287959,1775911833614,-500.0,0.00016438,2]
[420287960,1775911833628,-500.0,0.00016438,2]
[420287961,1775911833637,-238.54545461,0.00016438,2]
[420287962,1775911833661,-500.0,0.00016438,2]
[420287963,1775911833671,-699.93,0.00016438,2]
[420287964,1775911833680,-296.7189,0.000166,2]
[420287965,1775911833703,-2000.0,0.00016641,2]
[420287966,1775911833712,-1852.42,0.00016793,2]
[420287967,1775911833722,-4233.60982337,0.00017114,2]
[420287968,1775911833734,-524.06611693,0.00017564,2]
[420287969,1775911833749,-340.0917,0.00018,2]
[420287970,1775911833758,-2000.0,0.00018154,2]
[420287971,1775911833767,-1000.0,0.000189,6]
[420287972,1775911833783,-524.06611693,0.00019287,2]
[420287973,1775911833793,-535.949,0.00019318,2]
[420287974,1775911833802,-150.0,0.00019318,2]
[420287975,1775911833821,-150.0,0.00019318,2]
[420287976,1775911833833,-3774.0,0.00019318,2]
[420287977,1775911833845,-6024.0,0.00019318,2]
[420287978,1775911833859,-389.8044,0.000194,2]
[420287979,1775911833870,-500.0,0.00019411,2]
[420287980,1775911833887,-500.0,0.00019411,2]
[420287981,1775911833901,-4233.60982337,0.00019686,2]
[420287982,1775911833927,-241.0,0.0002,2]
[420287983,1775911833938,-516.0,0.0002,2]
[420287984,1775911833963,-1228.0,0.0002,2]
[420287985,1775911833975,-501.0,0.0002,2]